fUSD/lending_fUSD_20240831
["ID","MTS","AMOUNT","RATE_DAILY","PERIOD"]
[336735332,1725091848438,-825.31990445,0.00024931,2]
[336735333,1725091848830,-358.51542953,0.00019255,2]
[336735334,1725091848842,-141.48457047,0.00019255,2]
[336735335,1725091848852,-500.0,0.00019255,2]
[336735336,1725091848861,-500.0,0.00019255,2]
[336735337,1725091848872,-321.27958955,0.00019255,2]
[336735338,1725091848883,-178.72041045,0.00019255,2]
[336735339,1725091848892,-500.0,0.00019255,2]
[336735340,1725091848902,-321.27958955,0.00019255,2]
[336735341,1725091848914,-178.72041045,0.00019255,2]
[336735342,1725091848924,-291.35958955,0.00019255,2]
[336735343,1725091848935,-208.64041045,0.00019255,2]
[336735344,1725091848945,-500.0,0.00019255,2]
[336735345,1725091848955,-200.0,0.00021475,2]
[336735346,1725091848964,-2769.92553459,0.000249,2]
[336735347,1725091848976,-442.82396974,0.000249,2]
[336735348,1725091848995,-1370.96730524,0.000249,2]
[336735349,1725091849007,-2259.10073743,0.000249,2]
[336735350,1725091849017,-9246.25184583,0.00024931,2]
[336735351,1725091849027,-6308.03147341,0.00024931,2]
[336735352,1725091849042,-285.60453231,0.00024931,2]
[336735353,1725091849063,-460.3993742,0.00024931,2]
[336735354,1725091849075,-2064.39225517,0.00024931,2]
[336735355,1725091849086,-4643.55379647,0.00024931,2]
[336735356,1725091849097,-3534.47329186,0.00024931,2]
[336735357,1725091849112,-44440.01067001,0.00024931,2]
[336735358,1725091849121,-40833.6663427,0.00024931,2]
[336735359,1725091849132,-16344.51668327,0.00024931,2]
[336735360,1725091849144,-4558.28236746,0.00024931,2]
[336735361,1725091849153,-61736.46539343,0.00024931,2]
[336735362,1725091849163,-203.28648646,0.00024931,4]
[336735363,1725091849172,-1000.0,0.00024931,2]
[336735364,1725091849181,-1000.0,0.00024931,2]
[336735365,1725091849190,-1000.0,0.00024931,2]
[336735366,1725091849200,-1000.0,0.00024931,2]
[336735367,1725091849209,-1000.0,0.00024931,2]
[336735368,1725091849218,-1000.0,0.00024931,2]
[336735369,1725091849228,-1000.0,0.00024931,2]
[336735370,1725091849237,-1000.0,0.00024931,2]
[336735371,1725091849324,-1000.0,0.00024931,2]
[336735372,1725091849333,-1000.0,0.00024931,2]
[336735373,1725091849342,-151.0,0.00024931,7]
[336735374,1725091849352,-151.0,0.00024931,7]
[336735375,1725091849361,-151.0,0.00024931,7]
[336735376,1725091849374,-215.2965,0.00024931,7]
[336735377,1725091849384,-500.0,0.00024931,2]
[336735378,1725091849394,-500.0,0.00024931,2]
[336735379,1725091849403,-500.0,0.00024931,2]
[336735380,1725091849413,-500.0,0.00024931,2]
[336735381,1725091849423,-500.0,0.00024931,2]
[336735382,1725091849432,-500.0,0.00024931,2]
[336735383,1725091849441,-500.0,0.00024931,2]
[336735384,1725091849451,-500.0,0.00024931,2]
[336735385,1725091849460,-500.0,0.00024931,2]
[336735386,1725091849469,-4500.0,0.00024931,2]
[336735387,1725091849479,-500.0,0.00024931,2]
[336735388,1725091849488,-500.0,0.00024931,2]
[336735389,1725091849497,-500.0,0.00024931,2]
[336735390,1725091849506,-4500.0,0.00024931,2]
[336735391,1725091849515,-500.0,0.00024931,2]
[336735392,1725091849525,-500.0,0.00024931,2]
[336735393,1725091849534,-500.0,0.00024931,2]
[336735394,1725091849543,-4500.0,0.00024931,2]
[336735395,1725091849553,-500.0,0.00024931,2]
[336735396,1725091849563,-500.0,0.00024931,2]
[336735397,1725091849572,-4500.0,0.00024931,2]
[336735398,1725091849582,-500.0,0.00024931,2]
[336735399,1725091849591,-500.0,0.00024931,2]
[336735400,1725091849600,-620.82419414,0.00024931,2]
[336735401,1725091849611,-4500.0,0.00024931,2]
[336735402,1725091849620,-500.0,0.00024931,2]
[336735403,1725091849629,-65.46374913,0.00024931,2]
[336735404,1725091849641,-434.53625087,0.00024931,2]
[336735405,1725091849650,-4500.0,0.00024931,2]
[336735406,1725091849660,-500.0,0.00024931,2]
[336735407,1725091849669,-306.12904162,0.00024931,2]
[336735408,1725091849679,-500.0,0.00024931,2]
[336735409,1725091849688,-500.0,0.00024931,2]
[336735410,1725091849697,-4500.0,0.00024931,2]
[336735411,1725091849706,-500.0,0.00024931,2]
[336735412,1725091849715,-500.0,0.00024931,2]
[336735413,1725091849724,-4500.0,0.00024931,2]
[336735414,1725091849733,-500.0,0.00024931,2]
[336735415,1725091849742,-500.0,0.00024931,2]
[336735416,1725091849750,-4500.0,0.00024931,2]
[336735417,1725091849759,-500.0,0.00024931,2]
[336735418,1725091849769,-500.0,0.00024931,2]
[336735419,1725091849777,-4500.0,0.00024931,2]
[336735420,1725091849786,-205.8324735,0.00024931,2]
[336735421,1725091849796,-500.0,0.00024931,2]
[336735422,1725091849805,-200.05677026,0.00024931,2]
[336735423,1725091849814,-627.78474422,0.00024931,2]
[336735424,1725091849824,-4500.0,0.00024931,2]
[336735425,1725091849833,-500.0,0.00024931,2]
[336735426,1725091849842,-500.0,0.00024931,2]
[336735427,1725091849851,-604.9762553,0.00024931,2]
[336735428,1725091849860,-500.0,0.00024931,2]
[336735429,1725091849871,-959.57435637,0.00024931,2]
[336735430,1725091849881,-4500.0,0.00024931,2]
[336735431,1725091849890,-500.0,0.00024931,2]
[336735432,1725091849899,-158.41038832,0.00024931,2]
[336735433,1725091849909,-500.0,0.00024931,2]
[336735434,1725091849918,-4500.0,0.00024931,2]
[336735435,1725091849927,-500.0,0.00024931,2]
[336735436,1725091849936,-500.0,0.00024931,2]
[336735437,1725091849945,-294.29458554,0.00024931,2]
[336735438,1725091849955,-500.0,0.00024931,2]
[336735439,1725091849964,-161.24610289,0.00024931,2]
[336735440,1725091849973,-500.0,0.00024931,2]
[336735441,1725091849983,-500.0,0.00024931,2]
[336735442,1725091849992,-500.0,0.00024931,2]
[336735443,1725091850002,-500.0,0.00024931,2]
[336735444,1725091850011,-500.0,0.00024931,2]
[336735445,1725091850020,-4294.37520829,0.00024931,2]
[336735446,1725091850037,-205.62479171,0.00024931,2]
[336735447,1725091850047,-500.0,0.00024931,2]
[336735448,1725091850056,-775.92429899,0.00024931,2]
[336735449,1725091850066,-500.0,0.00024931,2]
[336735450,1725091850076,-608.6449734,0.00024931,2]
[336735451,1725091850086,-4500.0,0.00024931,2]
[336735452,1725091850095,-500.0,0.00024931,2]
[336735453,1725091850104,-500.0,0.00024931,2]
[336735454,1725091850113,-4500.0,0.00024931,2]
[336735455,1725091850123,-810.0,0.00024931,2]
[336735456,1725091850132,-13.49173679,0.00024931,2]
[336735457,1725091850143,-486.50826321,0.00024931,2]
[336735458,1725091850152,-500.0,0.00024931,2]
[336735459,1725091850161,-327.3703897,0.00024931,2]
[336735460,1725091850172,-353.27858526,0.00024931,2]
[336735461,1725091850181,-4500.0,0.00024931,2]
[336735462,1725091850191,-1100.0,0.00024931,2]
[336735463,1725091850201,-500.0,0.00024931,2]
[336735464,1725091850210,-500.0,0.00024931,2]
[336735465,1725091850219,-2720.67133935,0.00024931,2]
[336735466,1725091850230,-891.94150928,0.00024931,2]
[336735467,1725091850246,-887.38715137,0.00024931,2]
[336735468,1725091850255,-1100.0,0.00024931,2]
[336735469,1725091850264,-547.95078063,0.00024931,2]
[336735470,1725091850274,-500.0,0.00024931,2]
[336735471,1725091850284,-4500.0,0.00024931,2]
[336735472,1725091850293,-1100.0,0.00024931,2]
[336735473,1725091850302,-500.0,0.00024931,2]
[336735474,1725091850311,-500.0,0.00024931,2]
[336735475,1725091850320,-4500.0,0.00024931,2]
[336735476,1725091850329,-1100.0,0.00024931,2]
[336735477,1725091850340,-500.0,0.00024931,2]
[336735478,1725091850349,-500.0,0.00024931,2]
[336735479,1725091850358,-541.45000003,0.00024931,2]
[336735480,1725091850367,-4500.0,0.00024931,2]
[336735481,1725091850380,-1100.0,0.00024931,2]
[336735482,1725091850390,-500.0,0.00024931,2]
[336735483,1725091850399,-4500.0,0.00024931,2]
[336735484,1725091850409,-500.0,0.00024931,2]
[336735485,1725091850418,-500.0,0.00024931,2]
[336735486,1725091850427,-1100.0,0.00024931,2]
[336735487,1725091850436,-500.0,0.00024931,2]
[336735488,1725091850445,-4500.0,0.00024931,2]
[336735489,1725091850454,-500.0,0.00024931,2]
[336735490,1725091850464,-500.0,0.00024931,2]
[336735491,1725091850473,-500.0,0.00024931,2]
[336735492,1725091850482,-1100.0,0.00024931,2]
[336735493,1725091850491,-500.0,0.00024931,2]
[336735494,1725091850501,-4500.0,0.00024931,2]
[336735495,1725091850510,-500.0,0.00024931,2]
[336735496,1725091850519,-500.0,0.00024931,2]
[336735497,1725091850528,-544.02850941,0.00024931,2]
[336735498,1725091850538,-1100.0,0.00024931,2]
[336735499,1725091850548,-500.0,0.00024931,2]
[336735500,1725091850556,-500.0,0.00024931,2]
[336735501,1725091850565,-4500.0,0.00024931,2]
[336735502,1725091850574,-1100.0,0.00024931,2]
[336735503,1725091850583,-500.0,0.00024931,2]
[336735504,1725091850593,-500.0,0.00024931,2]
[336735505,1725091850602,-557.00387087,0.00024931,2]
[336735506,1725091850612,-4500.0,0.00024931,2]
[336735507,1725091850621,-1100.0,0.00024931,2]
[336735508,1725091850630,-500.0,0.00024931,2]
[336735509,1725091850639,-500.0,0.00024931,2]
[336735510,1725091850649,-4500.0,0.00024931,2]
[336735511,1725091850658,-500.0,0.00024931,2]
[336735512,1725091850669,-1100.0,0.00024931,2]
[336735513,1725091850679,-500.0,0.00024931,2]
[336735514,1725091850688,-4500.0,0.00024931,2]
[336735515,1725091850697,-1100.0,0.00024931,2]
[336735516,1725091850707,-500.0,0.00024931,2]
[336735517,1725091850716,-500.0,0.00024931,2]
[336735518,1725091850724,-500.0,0.00024931,2]
[336735519,1725091850733,-151.25511106,0.00024931,2]
[336735520,1725091850742,-6447.75045806,0.00024931,2]
[336735521,1725091850751,-1100.0,0.00024931,2]
[336735522,1725091850760,-500.0,0.00024931,2]
[336735523,1725091850769,-500.0,0.00024931,2]
[336735524,1725091850778,-500.0,0.00024931,2]
[336735525,1725091850787,-683.51033882,0.00024931,2]
[336735526,1725091850796,-1100.0,0.00024931,2]
[336735527,1725091850805,-500.0,0.00024931,2]
[336735528,1725091850815,-1100.0,0.00024931,2]
[336735529,1725091850824,-500.0,0.00024931,2]
[336735530,1725091850835,-500.0,0.00024931,2]
[336735531,1725091850844,-500.0,0.00024931,2]
[336735532,1725091850852,-500.0,0.00024931,2]
[336735533,1725091850861,-500.0,0.00024931,2]
[336735534,1725091850872,-500.0,0.00024931,2]
[336735535,1725091850882,-500.0,0.00024931,2]
[336735536,1725091850892,-1100.0,0.00024931,2]
[336735537,1725091850901,-500.0,0.00024931,2]
[336735538,1725091850911,-500.0,0.00024931,2]
[336735539,1725091850920,-500.0,0.00024931,2]
[336735540,1725091850929,-500.0,0.00024931,2]
[336735541,1725091850939,-358.69021262,0.00024931,2]
[336735542,1725091850948,-500.0,0.00024931,2]
[336735543,1725091850957,-500.0,0.00024931,2]
[336735544,1725091850966,-500.0,0.00024931,2]
[336735545,1725091850975,-1100.0,0.00024931,2]
[336735546,1725091850984,-896.87725581,0.00024931,2]
[336735547,1725091850994,-500.0,0.00024931,2]
[336735548,1725091851003,-500.0,0.00024931,2]
[336735549,1725091851013,-2500.0,0.00024931,2]
[336735550,1725091851022,-500.0,0.00024931,2]
[336735551,1725091851032,-500.0,0.00024931,2]
[336735552,1725091851042,-500.0,0.00024931,2]
[336735553,1725091851051,-500.0,0.00024931,2]
[336735554,1725091851061,-1100.0,0.00024931,2]
[336735555,1725091851070,-500.0,0.00024931,2]
[336735556,1725091851080,-2500.0,0.00024931,2]
[336735557,1725091851090,-500.0,0.00024931,2]
[336735558,1725091851099,-690.38945307,0.00024931,2]
[336735559,1725091851109,-500.0,0.00024931,2]
[336735560,1725091851118,-500.0,0.00024931,2]
[336735561,1725091851128,-500.0,0.00024931,2]
[336735562,1725091851137,-500.0,0.00024931,2]
[336735563,1725091851146,-1100.0,0.00024931,2]
[336735564,1725091851156,-500.0,0.00024931,2]
[336735565,1725091851165,-2500.0,0.00024931,2]
[336735566,1725091851175,-500.0,0.00024931,2]
[336735567,1725091851184,-500.0,0.00024931,2]
[336735568,1725091851193,-500.0,0.00024931,2]
[336735569,1725091851203,-500.0,0.00024931,2]
[336735570,1725091851212,-1100.0,0.00024931,2]
[336735571,1725091851222,-385.06502338,0.00024931,2]
[336735572,1725091851232,-500.0,0.00024931,2]
[336735573,1725091851241,-2500.0,0.00024931,2]
[336735574,1725091851251,-500.0,0.00024931,2]
[336735575,1725091851260,-500.0,0.00024931,2]
[336735576,1725091851270,-700.0,0.00024931,2]
[336735577,1725091851279,-500.0,0.00024931,2]
[336735578,1725091851289,-500.0,0.00024931,2]
[336735579,1725091851298,-500.0,0.00024931,2]
[336735580,1725091851308,-1100.0,0.00024931,2]
[336735581,1725091851317,-500.0,0.00024931,2]
[336735582,1725091851327,-2500.0,0.00024931,2]
[336735583,1725091851337,-700.0,0.00024931,2]
[336735584,1725091851347,-500.0,0.00024931,2]
[336735585,1725091851357,-612.95070688,0.00024931,2]
[336735586,1725091851367,-500.0,0.00024931,2]
[336735587,1725091851381,-500.0,0.00024931,2]
[336735588,1725091851391,-199.88867543,0.00024931,2]
[336735589,1725091851401,-500.0,0.00024931,2]
[336735590,1725091851411,-2500.0,0.00024931,2]
[336735591,1725091851420,-700.0,0.00024931,2]
[336735592,1725091851430,-500.0,0.00024931,2]
[336735593,1725091851440,-500.0,0.00024931,2]
[336735594,1725091851450,-500.0,0.00024931,2]
[336735595,1725091851459,-2500.0,0.00024931,2]
[336735596,1725091851470,-700.0,0.00024931,2]
[336735597,1725091851480,-944.53174235,0.00024931,2]
[336735598,1725091851490,-1100.0,0.00024931,2]
[336735599,1725091851500,-500.0,0.00024931,2]
[336735600,1725091851510,-700.0,0.00024931,2]
[336735601,1725091851519,-500.0,0.00024931,2]
[336735602,1725091851531,-664.36829983,0.00024931,2]
[336735603,1725091851541,-500.0,0.00024931,2]
[336735604,1725091851551,-700.0,0.00024931,2]
[336735605,1725091851562,-2500.0,0.00024931,2]
[336735606,1725091851572,-1100.0,0.00024931,2]
[336735607,1725091851581,-500.0,0.00024931,2]
[336735608,1725091851591,-700.0,0.00024931,2]
[336735609,1725091851601,-500.0,0.00024931,2]
[336735610,1725091851612,-700.0,0.00024931,2]
[336735611,1725091851622,-1100.0,0.00024931,2]
[336735612,1725091851632,-2500.0,0.00024931,2]
[336735613,1725091851642,-500.0,0.00024931,2]
[336735614,1725091851651,-700.0,0.00024931,2]
[336735615,1725091851662,-500.0,0.00024931,2]
[336735616,1725091851671,-700.0,0.00024931,2]
[336735617,1725091851682,-500.0,0.00024931,2]
[336735618,1725091851692,-500.0,0.00024931,2]
[336735619,1725091851701,-1015.28261038,0.00024931,2]
[336735620,1725091851717,-376.58731798,0.00024931,2]
[336735622,1725092264719,158.33,0.00010959,2]
[336735623,1725092313259,182.99358497,0.00010904,2]
[336735624,1725092402611,150.0,0.00010904,2]
[336735625,1725092402789,150.0,0.00010904,2]
[336735626,1725092402958,150.0,0.00010904,2]
[336735627,1725092403133,150.0,0.00010904,2]
[336735628,1725092403304,154.50826206,0.00010904,2]
[336735629,1725092406627,92346.47767831,0.0001095,2]
[336735630,1725092406652,631066.54833049,0.0001095,2]
[336735631,1725092613922,183.1,0.0002196,62]
[336735632,1725092791201,155.73,0.00010959,2]
[336735633,1725092802692,157.039188,0.00010932,2]
[336735634,1725092819871,1199.47551694,0.00010888,2]
[336735642,1725092877188,1334.06672992,0.0001,2]
[336735649,1725092954963,165.47941094,0.00010888,2]
[336735663,1725093031856,-150.0,0.00010987,2]
[336735664,1725093031866,-426.02,0.00010988,2]
[336735992,1725093045749,-6613.22541668,0.00010988,2]
[336735993,1725093045761,-12233.848,0.00010988,2]
[336735994,1725093045773,-3391.41270362,0.00010988,2]
[336735997,1725093226532,165.47941094,0.00010888,2]
[336735998,1725093373102,158.22,0.00010959,2]
[336736000,1725093446667,200.0,0.00010359,2]
[336736001,1725093571899,200.0,0.0001025,2]
[336736002,1725093687752,484.3948082,0.00010888,2]
[336736003,1725093699043,200.0,0.00010834,2]
[336736004,1725093886875,152.19,0.00010959,2]
[336736014,1725094091791,165.47941094,0.00010888,2]
[336736019,1725094231934,-300.0,0.00010987,2]
[336736020,1725094231943,-7232.88863808,0.00010988,2]
[336736021,1725094231954,-689.30241408,0.00010988,2]
[336736022,1725094231990,-26924.6105786,0.00010988,2]
[336736023,1725094231999,-402.49986393,0.00011873,2]
[336736024,1725094232008,-150.0,0.00011973,2]
[336736025,1725094232017,-1000.0,0.00012,2]
[336736026,1725094232027,-500.0,0.00012,2]
[336736027,1725094232035,-500.0,0.00012,2]
[336736028,1725094232044,-500.0,0.00012,2]
[336736029,1725094232053,-500.0,0.00012,2]
[336736030,1725094232062,-420.0,0.00012073,2]
[336736031,1725094232071,-349.07222,0.000125,2]
[336736032,1725094232080,-349.07222,0.0001256,2]
[336736033,1725094232089,-349.07223,0.0001264,2]
[336736034,1725094232099,-349.07222,0.0001272,2]
[336736035,1725094232108,-349.07222,0.0001279,2]
[336736037,1725094232117,-349.07223,0.0001287,2]
[336736039,1725094232126,-587.0,0.00013267,2]
[336736041,1725094232135,-1050.0,0.00014,2]
[336736043,1725094232143,-823.0,0.0001458,2]
[336736044,1725094232152,-5712.0,0.000158,2]
[336736047,1725094232162,-447.0,0.00015822,2]
[336736049,1725094232172,-810.0,0.00015822,2]
[336736051,1725094232181,-557.0,0.00015822,2]
[336736053,1725094232190,-930.0,0.00015822,2]
[336736055,1725094232199,-151.41,0.0001593,2]
[336736057,1725094232208,-1152.0,0.00016022,2]
[336736058,1725094232216,-150.45,0.00016734,2]
[336736059,1725094232225,-1613.0,0.00017606,2]
[336736060,1725094232234,-499.99,0.0001794,2]
[336736061,1725094232243,-375.31,0.00018568,2]
[336736062,1725094232253,-2258.0,0.00019347,2]
[336736063,1725094232262,-451.95,0.00019465,2]
[336736064,1725094232271,-170.802,0.00019726,2]
[336736065,1725094232281,-200.0,0.00019737,2]
[336736066,1725094232290,-200.0,0.00019787,2]
[336736067,1725094232298,-2751.0,0.00019858,2]
[336736068,1725094232307,-150.45,0.00019931,2]
[336736069,1725094232317,-158.33,0.00019961,2]
[336736070,1725094232327,-1049.32,0.00020071,2]
[336736071,1725094232336,-230.81,0.00020128,2]
[336736072,1725094232347,-214.84,0.00020133,2]
[336736073,1725094232357,-250.0,0.0002014,2]
[336736074,1725094232366,-150.0,0.00020149,2]
[336736075,1725094232375,-1000.0,0.00020337,2]
[336736076,1725094232384,-500.0,0.00020341,2]
[336736077,1725094232394,-250.0,0.00020359,2]
[336736078,1725094232403,-1000.0,0.00020409,2]
[336736079,1725094232412,-2474.58,0.00020454,2]
[336736080,1725094232421,-313.58,0.00020597,2]
[336736081,1725094232430,-151.38,0.00020721,2]
[336736082,1725094232440,-188.74,0.00020791,2]
[336736083,1725094232449,-175.5,0.00020803,2]
[336736084,1725094232458,-199.02,0.00020811,2]
[336736085,1725094232468,-250.0,0.00020822,2]
[336736086,1725094232477,-375.31,0.00020832,2]
[336736087,1725094232486,-200.0,0.00020856,2]
[336736088,1725094232496,-4700.0,0.0002099,2]
[336736089,1725094232505,-1000.0,0.00021,10]
[336736090,1725094232515,-319.76,0.00021,2]
[336736091,1725094232524,-999.92,0.00021,2]
[336736092,1725094232533,-429.9,0.00021149,2]
[336736093,1725094232542,-179.72,0.00021199,2]
[336736094,1725094232551,-3162.0,0.00021261,2]
[336736095,1725094232560,-1110.0246664,0.00021521,2]
[336736096,1725094232569,-1427.03166881,0.00021521,2]
[336736097,1725094232579,-300.0,0.00021565,2]
[336736098,1725094232587,-500.0,0.00021576,2]
[336736099,1725094232598,-159.01,0.00021589,30]
[336736100,1725094232610,-1047.0,0.000216,2]
[336736101,1725094232619,-150.16,0.00021918,2]
[336736102,1725094232628,-4892.41,0.00021918,2]
[336736103,1725094232637,-191.6,0.00021944,2]
[336736104,1725094232647,-1800.0,0.00022,10]
[336736105,1725094232657,-999.92,0.00022015,2]
[336736106,1725094232666,-1000.0,0.00022124,2]
[336736107,1725094232675,-319.76,0.00022445,2]
[336736108,1725094232685,-1000.0,0.00022466,2]
[336736109,1725094232695,-150.0,0.00022488,2]
[336736110,1725094232704,-150.16,0.00022527,2]
[336736111,1725094232713,-6746.5996,0.0002255,2]
[336736112,1725094232723,-751.5,0.0002264,3]
[336736113,1725094232732,-214.84,0.0002265,2]
[336736114,1725094232742,-500.0,0.0002265,2]
[336736115,1725094232751,-500.0,0.0002265,2]
[336736116,1725094232761,-500.0,0.0002265,2]
[336736117,1725094232770,-500.0,0.0002265,2]
[336736118,1725094232779,-500.0,0.0002265,2]
[336736119,1725094232787,-500.0,0.0002265,2]
[336736120,1725094232798,-500.0,0.0002265,2]
[336736121,1725094232808,-500.0,0.0002265,2]
[336736122,1725094232817,-500.0,0.0002265,2]
[336736123,1725094232827,-500.0,0.0002265,2]
[336736124,1725094232837,-500.0,0.0002265,2]
[336736125,1725094232849,-500.0,0.0002265,2]
[336736126,1725094232858,-500.0,0.0002265,2]
[336736127,1725094232867,-500.0,0.0002265,2]
[336736128,1725094232876,-500.0,0.0002265,2]
[336736129,1725094232887,-500.0,0.0002265,2]
[336736130,1725094232896,-500.0,0.0002265,2]
[336736131,1725094232905,-500.0,0.0002265,2]
[336736132,1725094232915,-500.0,0.0002265,2]
[336736133,1725094232926,-500.0,0.0002265,2]
[336736134,1725094232936,-500.0,0.0002265,2]
[336736135,1725094232946,-500.0,0.0002265,2]
[336736136,1725094232956,-500.0,0.0002265,2]
[336736137,1725094232965,-500.0,0.0002265,2]
[336736138,1725094232975,-500.0,0.0002265,2]
[336736139,1725094232986,-500.0,0.0002265,2]
[336736140,1725094232996,-500.0,0.0002265,2]
[336736141,1725094233108,-500.0,0.0002265,2]
[336736142,1725094233175,-500.0,0.0002265,2]
[336736143,1725094233185,-500.0,0.0002265,2]
[336736144,1725094233195,-500.0,0.0002265,2]
[336736145,1725094233204,-500.0,0.0002265,2]
[336736146,1725094233214,-500.0,0.0002265,2]
[336736147,1725094233223,-500.0,0.0002265,2]
[336736148,1725094233232,-500.0,0.0002265,2]
[336736149,1725094233241,-500.0,0.0002265,2]
[336736150,1725094233250,-500.0,0.0002265,2]
[336736151,1725094233260,-500.0,0.0002265,2]
[336736152,1725094233269,-500.0,0.0002265,2]
[336736153,1725094233279,-500.0,0.0002265,2]
[336736154,1725094233288,-500.0,0.0002265,2]
[336736155,1725094233297,-500.0,0.0002265,2]
[336736156,1725094233306,-500.0,0.0002265,2]
[336736157,1725094233317,-500.0,0.0002265,2]
[336736158,1725094233326,-500.0,0.0002265,2]
[336736159,1725094233335,-500.0,0.0002265,2]
[336736160,1725094233345,-500.0,0.0002265,2]
[336736161,1725094233354,-500.0,0.0002265,2]
[336736162,1725094233363,-500.0,0.0002265,2]
[336736163,1725094233372,-500.0,0.0002265,2]
[336736164,1725094233381,-500.0,0.0002265,2]
[336736165,1725094233390,-500.0,0.0002265,2]
[336736166,1725094233401,-500.0,0.0002265,2]
[336736167,1725094233410,-500.0,0.0002265,2]
[336736168,1725094233419,-500.0,0.0002265,2]
[336736169,1725094233428,-500.0,0.0002265,2]
[336736170,1725094233438,-500.0,0.0002265,2]
[336736171,1725094233447,-500.0,0.0002265,2]
[336736172,1725094233457,-500.0,0.0002265,2]
[336736173,1725094233466,-500.0,0.0002265,2]
[336736174,1725094233476,-500.0,0.0002265,2]
[336736175,1725094233485,-500.0,0.0002265,2]
[336736176,1725094233495,-500.0,0.0002265,2]
[336736177,1725094233505,-500.0,0.0002265,2]
[336736178,1725094233514,-500.0,0.0002265,2]
[336736179,1725094233524,-500.0,0.0002265,2]
[336736180,1725094233534,-500.0,0.0002265,2]
[336736181,1725094233543,-500.0,0.0002265,2]
[336736182,1725094233553,-500.0,0.0002265,2]
[336736183,1725094233562,-500.0,0.0002265,2]
[336736184,1725094233571,-500.0,0.0002265,2]
[336736185,1725094233581,-500.0,0.0002265,2]
[336736186,1725094233590,-500.0,0.0002265,2]
[336736187,1725094233601,-500.0,0.0002265,2]
[336736188,1725094233614,-500.0,0.0002265,2]
[336736189,1725094233624,-500.0,0.0002265,2]
[336736190,1725094233633,-500.0,0.0002265,2]
[336736191,1725094233643,-500.0,0.0002265,2]
[336736192,1725094233653,-500.0,0.0002265,2]
[336736193,1725094233662,-500.0,0.0002265,2]
[336736194,1725094233672,-500.0,0.0002265,2]
[336736195,1725094233681,-500.0,0.0002265,2]
[336736196,1725094233693,-500.0,0.0002265,2]
[336736197,1725094233703,-500.0,0.0002265,2]
[336736198,1725094233713,-500.0,0.0002265,2]
[336736199,1725094233722,-500.0,0.0002265,2]
[336736200,1725094233733,-500.0,0.0002265,2]
[336736201,1725094233742,-500.0,0.0002265,2]
[336736202,1725094233753,-500.0,0.0002265,2]
[336736203,1725094233762,-500.0,0.0002265,2]
[336736204,1725094233771,-500.0,0.0002265,2]
[336736205,1725094233780,-500.0,0.0002265,2]
[336736206,1725094233789,-500.0,0.0002265,2]
[336736207,1725094233799,-500.0,0.0002265,2]
[336736208,1725094233808,-500.0,0.0002265,2]
[336736209,1725094233817,-500.0,0.0002265,2]
[336736210,1725094233827,-500.0,0.0002265,2]
[336736211,1725094233837,-500.0,0.0002265,2]
[336736212,1725094233848,-500.0,0.0002265,2]